Cogmind - Beta 15 @@@ ROGUE MODE // 2025.08.31 @ 13:02:22 Player: the Result: Destroyed by D-53 Grenadier with Mini Grenade Launcher Performance ------------- Evolutions (0) 0 Regions Visited (2) 400 Robots Destroyed (27) 135 Value Destroyed (374) 374 Prototype IDs (5) 100 Alien Tech Used (0) 0 Bonus (0) 0 TOTAL SCORE: 1009 Bonus ------- None Cogmind --------- Core Integrity 0/250 Matter 211/300 Energy 87/100 System Corruption 8% Temperature Cool (1) Movement Walking (120) Location -10/Mines Parts ------- > --- POWER (1) -------- (None) > --- PROPULSION (2) --- Aluminum Leg > --- UTILITY (2) ------ Medium Storage Unit > --- WEAPON (2) ------- (None) > --- INVENTORY (10) --- Light Nuclear Core Aluminum Leg Aluminum Leg Heat Sink High-capacity Storage Unit Medium Laser Medium Laser Datajack Mining Laser Peak State ------------ > --- POWER ------------ Ion Engine > --- PROPULSION ------- Aluminum Leg Aluminum Leg > --- UTILITY ---------- Heat Sink Small Storage Unit > --- WEAPON ----------- Light Cannon Mining Laser > --- INVENTORY -------- Light Ion Engine Light Nuclear Core Aluminum Leg Aluminum Leg Aluminum Leg Heat Sink Medium Laser Medium Laser [Rating: 8] Favorites ----------- Power Ion Engine Engine Ion Engine Propulsion Aluminum Leg Leg Aluminum Leg Utility Small Storage Unit Device Heat Sink Storage Small Storage Unit Weapon Medium Laser Energy Gun Medium Laser Ballistic Gun Light Assault Rifle Ballistic Cannon Light Cannon Launcher Grenade Launcher Special Weapon Mining Laser Build | -11 -10 -10 ------- Run | Yrd Mat Min Slots Evolved . | . . . Power . | . . . Propulsion . | . . . Utility . | . . . Weapon . | . . . Parts Attached 22 | 9 11 2 Power 3 | 2 1 . Engine 3 | 2 1 . Core . | . . . Reactor . | . . . Propulsion 4 | 2 1 1 Treads . | . . . Leg 4 | 2 1 1 Wheel . | . . . Hover . | . . . Flight . | . . . Utility 5 | 2 3 . Device 2 | 1 1 . Storage 3 | 1 2 . Processor . | . . . Hackware . | . . . Protection . | . . . Artifact . | . . . Weapon 10 | 3 6 1 Energy Gun 5 | 2 3 . Energy Cannon . | . . . Ballistic Gun 1 | 1 . . Ballistic Cannon 1 | . 1 . Launcher 2 | . 1 1 Special Weapon 1 | . 1 . Impact Weapon . | . . . Slashing Weapon . | . . . Piercing Weapon . | . . . Special Melee Weapon . | . . . Unidentified Prototypes . | . . . Corrupted Parts 1 | . . 1 System Corruption 4 | . . 4 Parts Lost 10 | . 4 6 Power 1 | . . 1 Propulsion 2 | . . 2 Utility 2 | . 1 1 Weapon 5 | . 3 2 Highest Loss Streak 6 | . 3 6 To Critical Strikes . | . . . Average Backups 6 | 1 7 10 Power 1 | . 1 1 Propulsion 2 | . 2 3 Utility . | . 1 2 Weapon 2 | . 2 3 Tool/Special . | . . . Unused Backups 7 | . 2 5 Power 2 | . 1 1 Propulsion 3 | . 1 2 Utility 1 | . . 1 Weapon . | . . . Tool/Special 1 | . . 1 Average Slot Usage (%) 97 | . 98 95 Engine 14 | . 14 14 Leg 28 | . 28 28 Device 12 | . 12 14 Storage 14 | . 14 14 Energy Gun 20 | . 21 4 Ballistic Gun 1 | . 1 . Ballistic Cannon 1 | . 1 . Special Weapon 3 | . 3 . Peak Build Rating 8 | 7 8 8 Average Rating 7 | 5 7 6 On Entrance 5 | . 7 8 Naked Turns . | . . . Heaviest Build 21 | 15 21 21 Greatest Support 20 | 20 20 20 Greatest Overweight (x) 4 | 4 1 1 Average Overweight (x) . | . . . Largest Inventory Capacity 20 | 8 20 10 Average Capacity 8 | 7 8 10 Most Carried 10 | 3 10 10 Average Carried 6 | 1 7 9 Final Capacity 10 | 8 10 10 Final Carried 10 | 3 10 9 Class Distribution -------------------- 100% | Mutant Dominant Class ---------------- Mutant | -10/Materials Mutant | -10/Mines Resources | -11 -10 -10 ----------- Run | Yrd Mat Min Matter Collected 494 | 290 204 . Remotely . | . . . Salvage Created 889 | 299 554 36 Parts 61 | 22 39 . Haulers Intercepted 1 | . 1 . Recyclers Shooed . | . . . Parts Field Recycled . | . . . Retrieved Matter . | . . . Parts Self-Destructed . | . . . Prevented . | . . . Kills | -11 -10 -10 ------- Run | Yrd Mat Min Combat Hostiles Destroyed 24 | . 8 16 Guns 5 | . 5 . Cannons 2 | . 2 . AOE 17 | . 1 16 Classes Destroyed 10 | 2 7 1 Worker 2 | . 2 . Builder 1 | . 1 . Tunneler 9 | 9 . . Hauler 1 | . 1 . Recycler 3 | 1 2 . Operator 1 | . 1 . Watcher 2 | . 2 . Swarmer 3 | . 3 . Grunt 5 | . 5 . Assembled 16 | . . 16 Best Kill Streak 16 | 5 3 16 Combat Bots Only 16 | . 3 16 Max Kills in Single Turn 8 | 1 1 8 Gunslinging . | . . . Exploded 8 | . 1 8 Melee . | . . . Uniques/NPCs Destroyed . | . . . Combat | -11 -10 -10 -------- Run | Yrd Mat Min Hostile Shots Fired 88 | . 49 39 Missed 28 | . 16 12 Hits 60 | . 33 27 Melee 3 | . . 3 Projectile 57 | . 33 24 AOE 8 | . . 8 Damage Taken 1084 | . 336 748 Core 282 | . 31 251 Absorbed by Shields . | . . . Core Remaining (%) 100 | 100 . . Volleys Fired 108 | 16 87 5 Largest 2 | 2 2 2 Hottest 100 | 80 100 60 Shots Fired 175 | 32 135 8 Gun 127 | 32 95 . Cannon 12 | . 12 . Launcher 8 | . . 8 Special 28 | . 28 . Kinetic 28 | . 28 . Thermal 64 | . 64 . Explosive 8 | . . 8 Electromagnetic 75 | 32 43 . Robot Hit Streak 18 | 18 7 1 Robot Miss Streak 4 | 1 4 2 Penetration Max . | . . . Secondary Targets 1 | . 1 . Max Gunslinging Chain 1 | . 1 . Shots Hit Robots 85 | 24 60 1 Core Hits 71 | 10 23 38 Critical Kills . | . . . Critical Parts Destroyed . | . . . Critical Strikes 4 | 1 3 . Burn 3 | . 3 . Corrupt 1 | 1 . . Melee Attacks . | . . . Impact . | . . . Slashing . | . . . Piercing . | . . . Sneak Attacks . | . . . Combat Hostiles . | . . . Follow-up Attacks . | . . . Damage Inflicted 2053 | 348 829 876 Guns 946 | 314 632 . Cannons 154 | . 154 . Explosions 953 | 34 43 876 Melee . | . . . Ramming . | . . . Kinetic 207 | . 207 . Thermal 380 | 34 346 . Explosive 876 | . . 876 Electromagnetic 590 | 314 276 . Impact . | . . . Slashing . | . . . Piercing . | . . . Highest Corruption 8 | . . 8 Average Corruption 5 | . . 5 Corruption Purged . | . . . Corruption Blocked . | . . . Effects 1 | . . 1 Matter Fused 1 | . . 1 Overload Shots . | . . . Overflow Damage 3 | . . 3 Projectiles . | . . . Explosions 3 | . . 3 Melee . | . . . Knockbacks 2 | . 2 . Impact . | . . . Kinetic 1 | . 1 . Secondary 1 | . 1 . Self-Inflicted Damage 70 | . . 70 Shots 2 | . . 2 Rammed . | . . . Targets Rammed . | . . . Kicked . | . . . Crushed . | . . . Highest Temperature 160 | 90 160 10 Average Temperature 32 | 37 31 10 Received Heat Transfer 137 | . 117 20 Siege Activations . | . . . Martial Activations . | . . . Shielding Activations . | . . . Robots Disrupted . | . . . Combat Hostiles . | . . . Robots Corrupted . | . . . Combat Hostiles . | . . . Parts Fried 4 | 3 1 . Impact Corruptions . | . . . Robots Melted . | . . . Combat Hostiles . | . . . Parts Melted 1 | . 1 . Heat Transferred 1073 | . 1073 . Parts Sabotaged . | . . . Parts Stolen . | . . . Parts Stripped . | . . . Power Chain Reactions 2 | 1 1 . Alert | -11 -10 -10 ------- Run | Yrd Mat Min Maximum Alert Level . | . . . Low Security (%) 100 | 100 100 100 Level 1 . | . . . Level 2 . | . . . Level 3 . | . . . Level 4 . | . . . Level 5 . | . . . High Security . | . . . Max Security . | . . . Peak Influence 78 | 20 78 38 Initial . | . . . Average 15 | 3 17 15 Influence Increases 449 | 50 354 45 Destroy 0b10 Robot/C 160 | . 160 . Destroy 0b10 Robot/NC 95 | 50 45 . Destroy Leader 46 | . 46 . Successful Hack 32 | . 32 . Disable Machine 15 | . 15 . Destroy Structure 71 | . 26 45 Partial Spotted 15 | . 15 . Lose Combat Pursuer 15 | . 15 . Influence Decreases 449 | 50 354 45 Time Decay 364 | 50 314 . Lost Part 85 | . 40 45 Squads Dispatched 1 | . 1 . Investigation . | . . . Extermination . | . . . Reinforcement 1 | . 1 . Assault . | . . . Garrison . | . . . Intercept . | . . . Searches Triggered . | . . . Construction Impeded . | . . . Haulers Reinforced . | . . . Active Scanning Responses . | . . . Cargo Convoy Interrupts . | . . . Stealth | -11 -10 -10 --------- Run | Yrd Mat Min Distress Signals 1 | . 1 . Communications Jammed . | . . . Distress Signals . | . . . Times Spotted 33 | . 15 18 Peak Tracking Total 20 | . 3 20 Tactical Retreats 1 | . 1 . Traps | -11 -10 -10 ------- Run | Yrd Mat Min Traps Triggered . | . . . Indirectly . | . . . Trap Hack Attempts . | . . . Triggered . | . . . Disarmed . | . . . Reprogrammed . | . . . Reused . | . . . Traps Extracted . | . . . Installed . | . . . Triggered . | . . . Machines | -11 -10 -10 ---------- Run | Yrd Mat Min Machines Disabled 2 | . 2 . Max in Single Turn 1 | . 1 . Machines Repaired . | . . . Machines Dismantled . | . . . Machines Sabotaged . | . . . Overloaded Fab Kills . | . . . Hacking | -11 -10 -10 --------- Run | Yrd Mat Min Machines Accessed 9 | . 9 . Terminals 7 | . 7 . Fabricators . | . . . Repair Stations . | . . . Recycling Units 2 | . 2 . Scanalyzers . | . . . Garrison Access . | . . . Total Hacks 30 | . 30 . Successful 17 | . 17 . Failed 13 | . 13 . Catastrophic 1 | . 1 . Database Lockouts . | . . . Manual 24 | . 24 . Terminals 27 | . 27 . Fabricators . | . . . Repair Stations . | . . . Recycling Units 3 | . 3 . Scanalyzers . | . . . Garrison Access . | . . . Terminal Hacks 11 | . 11 . Part Schematic 2 | . 2 . Robot Schematic 1 | . 1 . Robot Analysis 3 | . 3 . Prototype ID Bank 3 | . 3 . Terminal Index 1 | . 1 . Registered Components 1 | . 1 . Fabricator Hacks . | . . . Repair Station Hacks . | . . . Recycling Unit Hacks 2 | . 2 . Report Inventory 2 | . 2 . Scanalyzer . | . . . Garrison Access Hacks . | . . . Unauthorized Hacks 4 | . 4 . Terminals 3 | . 3 . Botnet 2 | . 2 . Operators 1 | . 1 . Fabricators . | . . . Repair Stations . | . . . Recycling Units 1 | . 1 . Reject 1 | . 1 . Scanalyzers . | . . . Garrison Access . | . . . Data Cores Recovered . | . . . Used . | . . . Hacking Detections 9 | . 9 . Full Trace Events . | . . . Feedback Events . | . . . Feedback Blocked . | . . . Robot Schematics Acquired 1 | . 1 . Robots Built . | . . . Authchips . | . . . Time . | . . . Total Robot Build Rating . | . . . Part Schematics Acquired 2 | . 2 . Parts Built . | . . . Authchips . | . . . Time . | . . . Total Part Build Rating . | . . . Parts Repaired . | . . . Time . | . . . Parts Recycled . | . . . Recycled Matter . | . . . Retrieved Matter . | . . . Retrieved Components . | . . . Parts Scanalyzed . | . . . Part Schematics Acquired . | . . . Parts Damaged . | . . . Bothacking | -11 -10 -10 ------------ Run | Yrd Mat Min Used RIF Installer . | . . . Robots Hacked . | . . . Non-combat . | . . . Combat . | . . . Robot Hacks Applied . | . . . Relay Couplers Released . | . . . Fabnet Peak Effective % . | . . . Robots Rewired . | . . . Allies Hacked . | . . . Hacks Repelled . | . . . Allies | -11 -10 -10 -------- Run | Yrd Mat Min Total Allies . | . . . Largest Group . | . . . Highest-Rated Group . | . . . Highest-Rated Ally . | . . . Total Orders . | . . . Ally Attacks . | . . . Total Damage . | . . . Kills . | . . . Allies Corrupted . | . . . Allies Melted . | . . . Intel | -11 -10 -10 ------- Run | Yrd Mat Min Active Infowar (turns) 375 | 30 345 . Seismic 375 | 30 345 . Robot Analysis Total 3 | . 3 . Derelict Logs Recovered . | . . . Drone Launches . | . . . Drone Recoveries . | . . . Exploration | -11 -10 -10 ------------- Run | Yrd Mat Min Turns Passed 1608 | 243 1341 24 Spaces Moved 918 | 68 844 6 Core 12 | 12 . . Treads . | . . . Legs 906 | 56 844 6 Wheels . | . . . Hover . | . . . Flight . | . . . Fastest Speed 50 | 50 120 120 Average Speed 121 | 134 120 155 Slowest Speed 250 | 250 190 190 Overloaded Moves . | . . . Propulsion Burnouts . | . . . Robots Hopped . | . . . Potential Cave-ins . | . . . Cave-ins Triggered . | . . . Exploration Rate (%) 36 | 3 97 10 Regions Visited 2 Branch Regions 1 Pre-discovered Areas . | . . . Known Exits Taken . | . . . Unknown Exits Taken 2 | 1 1 . Scrap Searched . | . . . Spaces Dug 33 | . 17 16 Terrain Destroyed 88 | 3 31 54 Melee . | . . . Projectile 28 | . 28 . AOE 60 | 3 3 54 Terrain Rammed . | . . . Walls Destroyed . | . . . Machines Disabled . | . . . Actions | -11 -10 -10 --------- Run | Yrd Mat Min Total 1182 | 183 986 13 Wait 102 | 89 13 . Move 916 | 67 843 6 Hop . | . . . Pick Up 17 | 1 16 . Fast Attach 9 | 8 1 . Attach 4 | . 3 1 Detach 1 | 1 . . Swap 15 | 1 13 1 Drop 10 | . 10 . Fire 108 | 16 87 5 Melee . | . . . Ram . | . . . Kick . | . . . Crush . | . . . Escape Stasis . | . . . Rewire . | . . . Trap . | . . . Miscellaneous . | . . . Route ------- -11/Scrapyard -10/Materials (discovered 4 exits: [*Mat x3] / [*Min]) -10/Mines History --------- Turn | Location | Event 17 | -11/Scrapyard | Discovered new exit (range 16) 244 | -11/Scrapyard | Entered Materials 302 | -10/Materials | Build established: Mutant 521 | -10/Materials | Discovered new exit (range 12) 620 | -10/Materials | Lost 3 parts (1u2w) 669 | -10/Materials | Discovered new exit (range 16) 1067 | -10/Materials | Discovered new exit (range 14) 1297 | -10/Materials | Discovered new exit (range 8) 1585 | -10/Materials | Entered Mines 1586 | -10/Mines | Assembled infested the area 1604 | -10/Mines | Core integrity fell below 50% 1608 | -10/Mines | Core integrity fell below 20% 1609 | -10/Mines | Destroyed by D-53 Grenadier with Mini Grenade Launcher Last Messages --------------- 01595_ as-45223 destroyed. 01595_ as-05832 destroyed. 01595_ as-35780 destroyed. 01596_ The unstable cave ceiling collapses. 01597_ Grenade Launcher destroyed. 01597_ System corrupted by crushing effect (+4). 01600_ Knocked back. 01600_ as-32187 destroyed. 01600_ Aluminum Leg destroyed. 01600_ Destroyed Aluminum Leg. 01602_ C-30 ARC bursts open, deploying its payload. 01602_ D-53 Grenadier unfolds itself. 01603_ Grenade Launcher destroyed. 01603_ Heat Sink destroyed. 01604_ Ion Engine destroyed. 01606_ Integrated Corrupted Aluminum Leg (+4). 01607_ System corrupted: Matter fused (-9). 01607_ Aluminum Leg destroyed. 01609_ The unstable cave ceiling collapses. Map ----- +----------------------------------------------------+ | ?????????????????????????????????????????????????? | | ?????????????????????????????????????????????????? | | ?????????????????????????????????????????????????? | | ?????????????????????????????????????????????????? | | ?????????????????????????????????????????????????? | | ?????????????????????????????????????????????????? | | ?????????????????????????????????????????????????? | | ?????????????????????????????????????????????????? | | ?????????????????????????????????????????????????? | | ?????????????????????????????????????????????????? | | ?????????????????????????????????????????????????? | | ?????????????????????????????????????????????????? | | ?????????????????????????????????????????????????? | | ???????????????###???????????????????????????????? | | ??????????????## #######????????????????????????? | | ??????????????# " ????????????????????????? | | ????????????### %?????????????????????????? | | ????????????? d###???????????????????????? | | ??????????????? # d #####???????????????????? | | ????????????????# ????????????????????? | | ?????????% ??# #?????????????????????? | | ??????# # ##????????????????????? | | ?????? a # ##???????????????????? | | ?????